Cogmind - Beta 10.2 @@@ ROGUE MODE // 2020.11.29 @ 19:59:56 Player: SURFACESEEKER Result: Destroyed by G-34 Mercenary with Small Laser Performance ------------- Evolutions (1) 500 Regions Visited (3) 600 Robots Destroyed (28) 140 Value Destroyed (611) 611 Prototype IDs (0) 0 Alien Tech Used (0) 0 Bonus (0) 0 TOTAL SCORE: 1851 Bonus ------- None Cogmind --------- Core Integrity 0/400 Matter 251/300 Energy 86/100 System Corruption 0% Temperature Cool (22) Movement Core (200) Ox3 Location -9/Materials Parts ------- > --- POWER (1) -------- (None) > --- PROPULSION (2) --- (None) > --- UTILITY (4) ------ Disposable Heat Sink Small Storage Unit Seismic Analyzer > --- WEAPON (2) ------- Autogun Autogun > --- INVENTORY (6) ---- Hacking Suite Light Assault Rifle Peak State ------------ > --- POWER ------------ Ion Engine > --- PROPULSION ------- Aluminum Leg Aluminum Leg > --- UTILITY ---------- Disposable Heat Sink Small Storage Unit Terrain Scanner Seismic Analyzer > --- WEAPON ----------- Small Laser Light Assault Rifle > --- INVENTORY -------- Hacking Suite Beam Cannon Light Assault Rifle [Rating: 10] Favorites ----------- Power Ion Engine Engine Ion Engine Propulsion Aluminum Leg Leg Aluminum Leg Utility Seismic Analyzer Device Terrain Scanner Storage Small Storage Unit Processor Seismic Analyzer Weapon Light Assault Rifle Energy Gun Small Laser Energy Cannon Beam Cannon Ballistic Gun Light Assault Rifle Build | -11 -10 -10 -9 ------- Run | Scr Mat Min Mat Slots Evolved 2 | . . . 2 Power . | . . . . Propulsion . | . . . . Utility 2 | . . . 2 Weapon . | . . . . Parts Attached 24 | 8 8 . 8 Power 3 | 1 1 . 1 Engine 3 | 1 1 . 1 Core . | . . . . Reactor . | . . . . Propulsion 4 | 2 2 . . Treads . | . . . . Leg 4 | 2 2 . . Wheel . | . . . . Hover . | . . . . Flight . | . . . . Utility 6 | 3 1 . 2 Device 3 | 1 1 . 1 Storage 2 | 1 . . 1 Processor 1 | 1 . . . Hackware . | . . . . Protection . | . . . . Artifact . | . . . . Weapon 11 | 2 4 . 5 Energy Gun 3 | 1 2 . . Energy Cannon 2 | . 1 . 1 Ballistic Gun 6 | 1 1 . 4 Ballistic Cannon . | . . . . Launcher . | . . . . Special Weapon . | . . . . Impact Weapon . | . . . . Slashing Weapon . | . . . . Piercing Weapon . | . . . . Special Melee Weapon . | . . . . Unidentified Prototypes . | . . . . Parts Lost 16 | . 6 . 10 Power 3 | . 1 . 2 Propulsion 3 | . 1 . 2 Utility 2 | . 1 . 1 Weapon 8 | . 3 . 5 Highest Loss Streak 9 | . 3 . 9 Average Slot Usage (%) 93 | . 91 100 95 Engine 11 | . 11 14 10 Leg 24 | . 26 28 20 Device 14 | . 11 14 20 Storage 3 | . . . 11 Processor 12 | . 14 14 11 Energy Gun 11 | . 12 14 9 Energy Cannon 2 | . 3 . 1 Ballistic Gun 10 | . 9 14 11 Naked Turns . | . . . . Heaviest Build 13 | 13 10 8 13 Greatest Support 20 | 20 20 20 20 Greatest Overweight (x) 3 | . . . 3 Average Overweight (x) . | . . . . Largest Inventory Capacity 6 | 6 4 4 6 Average Capacity 4 | 5 4 4 6 Most Carried 5 | 4 4 4 5 Average Carried 3 | 1 3 4 3 Final Capacity 6 | 4 4 4 6 Final Carried 4 | 1 4 4 2 Class Distribution -------------------- 51% | Scavenger-Mutant 48% | Mutant Dominant Class ---------------- Mutant | -10/Materials Scavenger-Mutant | -10/Mines Scavenger-Mutant | -9/Materials Resources | -11 -10 -10 -9 ----------- Run | Scr Mat Min Mat Matter Collected 440 | 246 141 12 41 Remotely . | . . . . Salvage Created 836 | 80 482 . 274 Parts 66 | 12 30 . 24 Haulers Intercepted . | . . . . Recyclers Shooed 1 | . 1 . . Parts Field Recycled . | . . . . Retrieved Matter . | . . . . Parts Self-Destructed . | . . . . Prevented . | . . . . Kills | -11 -10 -10 -9 ------- Run | Scr Mat Min Mat Combat Hostiles Destroyed 19 | . 11 . 8 Guns 11 | . 4 . 7 Cannons 7 | . 6 . 1 AOE 1 | . 1 . . Classes Destroyed 9 | 2 5 . 2 Worker 2 | 1 1 . . Builder 1 | . 1 . . Tunneler 4 | 3 1 . . Mechanic 1 | . 1 . . Operator 1 | . 1 . . Swarmer 7 | . 3 . 4 Grunt 8 | . 8 . . Duelist 1 | . . . 1 Sentry 3 | . . . 3 Best Kill Streak 4 | 2 4 . 3 Combat Bots Only 3 | . 3 . 3 Max Kills in Single Turn 2 | 2 1 . 1 Gunslinging . | . . . . Exploded 1 | . 1 . . Melee . | . . . . Uniques/NPCs Destroyed . | . . . . Combat | -11 -10 -10 -9 -------- Run | Scr Mat Min Mat Damage Taken 1756 | 32 565 . 1159 Core 486 | . 83 . 403 Absorbed by Shields . | . . . . Core Remaining (%) 83 | 100 . 66 . Volleys Fired 85 | 6 44 . 35 Largest 2 | 2 2 . 2 Hottest 100 | 60 100 . 80 Shots Fired 144 | 12 64 . 68 Gun 112 | 12 43 . 57 Cannon 32 | . 21 . 11 Launcher . | . . . . Special . | . . . . Kinetic 59 | 6 13 . 40 Thermal 61 | . 33 . 28 Explosive . | . . . . Electromagnetic 24 | 6 18 . . Robot Hit Streak 9 | 4 9 . 7 Robot Miss Streak 2 | 2 2 . 2 Penetration Max . | . . . . Secondary Targets 1 | . . . 1 Max Gunslinging Chain 1 | . . . 1 Shots Hit Robots 96 | 7 41 . 48 Core Hits 41 | 4 19 . 18 Critical Hits . | . . . . Critical Kills . | . . . . Critical Parts Destroyed . | . . . . Melee Attacks . | . . . . Impact . | . . . . Slashing . | . . . . Piercing . | . . . . Sneak Attacks . | . . . . Combat Hostiles . | . . . . Follow-up Attacks . | . . . . Damage Inflicted 1427 | 171 731 . 525 Guns 787 | 107 313 . 367 Cannons 423 | . 265 . 158 Explosions 217 | 64 153 . . Melee . | . . . . Ramming . | . . . . Kinetic 300 | 39 48 . 213 Thermal 858 | 64 482 . 312 Explosive . | . . . . Electromagnetic 269 | 68 201 . . Impact . | . . . . Slashing . | . . . . Piercing . | . . . . Highest Corruption . | . . . . Average Corruption . | . . . . Corruption Purged . | . . . . Overload Shots . | . . . . Overflow Damage 11 | . 11 . . Projectiles . | . . . . Explosions 11 | . 11 . . Melee . | . . . . Knockbacks . | . . . . Impact . | . . . . Kinetic . | . . . . Secondary . | . . . . Self-Inflicted Damage 112 | 32 80 . . Shots 4 | 1 3 . . Rammed . | . . . . Targets Rammed . | . . . . Kicked . | . . . . Crushed . | . . . . Highest Temperature 190 | 12 140 . 190 Average Temperature 52 | 12 54 . 50 Received Heat Transfer 468 | . 174 . 294 Siege Activations . | . . . . Robots Corrupted . | . . . . Combat Hostiles . | . . . . Parts Fried . | . . . . Impact Corruptions . | . . . . Robots Melted . | . . . . Combat Hostiles . | . . . . Parts Melted 2 | . 1 . 1 Heat Transferred 1638 | 50 905 . 683 Parts Sabotaged . | . . . . Parts Stolen . | . . . . Parts Stripped . | . . . . Power Chain Reactions 4 | 1 3 . . Missiles Intercepted . | . . . . Alert | -11 -10 -10 -9 ------- Run | Scr Mat Min Mat Peak Influence 238 | 20 228 42 238 Initial 42 | . 13 42 16 Average 84 | 7 86 42 117 Maximum Alert Level 1 | . 1 . 1 Low Security (%) 96 | 100 99 100 89 Level 1 3 | . . . 10 Level 2 . | . . . . Level 3 . | . . . . Level 4 . | . . . . Level 5 . | . . . . High Security . | . . . . Max Security . | . . . . Squads Dispatched 5 | . 3 . 2 Investigation 1 | . 1 . . Extermination . | . . . . Reinforcement 4 | . 2 . 2 Assault . | . . . . Garrison . | . . . . Intercept . | . . . . Construction Impeded . | . . . . Haulers Reinforced . | . . . . Stealth | -11 -10 -10 -9 --------- Run | Scr Mat Min Mat Distress Signals 3 | . . . 3 Communications Jammed . | . . . . Distress Signals . | . . . . Times Spotted 35 | . 18 . 17 Peak Tracking Total 8 | . 3 . 8 Tactical Retreats 3 | . 1 . 2 Traps | -11 -10 -10 -9 ------- Run | Scr Mat Min Mat Traps Triggered . | . . . . Indirectly . | . . . . Trap Hack Attempts . | . . . . Triggered . | . . . . Disarmed . | . . . . Reprogrammed . | . . . . Reused . | . . . . Traps Extracted . | . . . . Installed . | . . . . Triggered . | . . . . Machines | -11 -10 -10 -9 ---------- Run | Scr Mat Min Mat Machines Disabled 1 | . 1 . . Max in Single Turn 1 | . 1 . . Machines Sabotaged . | . . . . Garrisons Compromised . | . . . . Overloaded Fab Kills . | . . . . Fab Network Shutdowns . | . . . . Hacking | -11 -10 -10 -9 --------- Run | Scr Mat Min Mat Machines Accessed 2 | . 1 . 1 Terminals 1 | . . . 1 Fabricators . | . . . . Repair Stations . | . . . . Recycling Units 1 | . 1 . . Scanalyzers . | . . . . Garrison Access . | . . . . Total Hacks 6 | . 3 . 3 Successful 6 | . 3 . 3 Failed . | . . . . Catastrophic . | . . . . Database Lockouts . | . . . . Manual . | . . . . Terminals 3 | . . . 3 Fabricators . | . . . . Repair Stations . | . . . . Recycling Units 3 | . 3 . . Scanalyzers . | . . . . Garrison Access . | . . . . Terminal Hacks 3 | . . . 3 Record 2 | . . . 2 Alert Level 1 | . . . 1 Fabricator Hacks . | . . . . Repair Station Hacks . | . . . . Recycling Unit Hacks 3 | . 3 . . Report Inventory 2 | . 2 . . Retrieve Components 1 | . 1 . . Scanalyzer . | . . . . Garrison Access Hacks . | . . . . Unauthorized Hacks . | . . . . Terminals . | . . . . Fabricators . | . . . . Repair Stations . | . . . . Recycling Units . | . . . . Scanalyzers . | . . . . Garrison Access . | . . . . Data Cores Recovered . | . . . . Used . | . . . . Hacking Detections 1 | . 1 . . Full Trace Events 1 | . 1 . . Feedback Events . | . . . . Feedback Blocked . | . . . . Robot Schematics Acquired . | . . . . Robots Built . | . . . . Matter . | . . . . Time . | . . . . Total Robot Build Rating . | . . . . Part Schematics Acquired . | . . . . Parts Built . | . . . . Matter . | . . . . Time . | . . . . Total Part Build Rating . | . . . . Parts Repaired . | . . . . Time . | . . . . Parts Recycled . | . . . . Recycled Matter . | . . . . Retrieved Matter . | . . . . Retrieved Components 8 | . 8 . . Parts Scanalyzed . | . . . . Part Schematics Acquired . | . . . . Parts Damaged . | . . . . Bothacking | -11 -10 -10 -9 ------------ Run | Scr Mat Min Mat Used RIF Installer . | . . . . Robots Hacked . | . . . . Non-combat . | . . . . Combat . | . . . . Robot Hacks Applied . | . . . . Relay Couplers Released . | . . . . Robots Rewired . | . . . . Allies Hacked . | . . . . Hacks Repelled . | . . . . Allies | -11 -10 -10 -9 -------- Run | Scr Mat Min Mat Total Allies . | . . . . Largest Group . | . . . . Highest-Rated Group . | . . . . Highest-Rated Ally . | . . . . Total Orders . | . . . . Ally Attacks . | . . . . Total Damage . | . . . . Kills . | . . . . Allies Corrupted . | . . . . Allies Melted . | . . . . Intel | -11 -10 -10 -9 ------- Run | Scr Mat Min Mat Robot Analysis Total . | . . . . Derelict Logs Recovered . | . . . . Drone Launches . | . . . . Drone Recoveries . | . . . . Exploration | -11 -10 -10 -9 ------------- Run | Scr Mat Min Mat Turns Passed 1264 | 155 664 52 393 Spaces Moved 719 | 113 326 44 236 Core 26 | 21 . . 5 Treads . | . . . . Legs 693 | 92 326 44 231 Wheels . | . . . . Hover . | . . . . Flight . | . . . . Fastest Speed 50 | 50 120 120 100 Average Speed 118 | 106 120 120 120 Slowest Speed 200 | 120 120 120 200 Overloaded Moves . | . . . . Propulsion Burnouts . | . . . . Robots Hopped . | . . . . Cave-ins Triggered . | . . . . Exploration Rate (%) 15 | 4 28 11 17 Regions Visited 3 Branch Regions 1 Pre-discovered Areas . | . . . . Known Exits Taken . | . . . . Unknown Exits Taken 3 | 1 1 1 . Scrap Searched 1 | . . 1 . Spaces Dug . | . . . . Terrain Destroyed 9 | 4 5 . . Melee . | . . . . Projectile . | . . . . AOE 9 | 4 5 . . Terrain Rammed . | . . . . Walls Destroyed . | . . . . Machines Disabled . | . . . . Actions | -11 -10 -10 -9 --------- Run | Scr Mat Min Mat Total 998 | 135 535 43 285 Wait 150 | . 150 . . Move 716 | 112 325 43 236 Hop . | . . . . Pick Up 20 | 8 6 . 6 Fast Attach 3 | . 3 . . Attach 19 | 8 3 . 8 Detach 1 | 1 . . . Swap 2 | . 2 . . Drop 2 | . 2 . . Fire 85 | 6 44 . 35 Melee . | . . . . Ram . | . . . . Kick . | . . . . Crush . | . . . . Escape Stasis . | . . . . Rewire . | . . . . Trap . | . . . . Miscellaneous . | . . . . Route ------- -11/Scrapyard -10/Materials -10/Mines -9/Materials History --------- Turn | Location | Event 13 | -11/Scrapyard | Discovered new exit (range 15) 156 | -11/Scrapyard | Entered Materials 309 | -10/Materials | Build established: Mutant 615 | -10/Materials | Lost 3 parts (1n1u1w) 785 | -10/Materials | Discovered new exit (range 15) 820 | -10/Materials | Entered Mines 864 | -10/Mines | Discovered new exit (range 5) 869 | -10/Mines | Assembled infested the area 872 | -10/Mines | Entered Materials 872 | -9/Materials | Evolved 2 slots: Utility x2 912 | -9/Materials | Build established: Scavenger-Mutant 1253 | -9/Materials | Core integrity fell below 50% 1260 | -9/Materials | Core integrity fell below 20% 1265 | -9/Materials | Destroyed by G-34 Mercenary with Small Laser Last Messages --------------- 01200_ ALERT: Hostiles spotted, dispatching reinforcements to Terminal M006. 01200_ O-16 Technician locks terminal. 01201_ Lgt. Assault Rifle destroyed. 01216_ Y-45 Defender destroyed. 01219_ K-01 Serf collects debris. 01221_ Terrain Scanner destroyed. 01223_ K-01 Serf collects debris. 01230_ K-01 Serf destroyed. 01233_ Y-45 Defender destroyed. 01241_ Aluminum Leg destroyed. 01246_ Lgt. Assault Rifle destroyed. 01247_ R-06 Scavenger collects Sml. Matter Pod. 01250_ R-06 Scavenger collects Beam Rifle. 01250_ Beam Cannon destroyed. 01253_ R-06 Scavenger collects Lgt. Armor Plating. 01255_ Lgt. Ion Engine destroyed. 01256_ Acquired Autogun. 01261_ L-31 Rogue destroyed. 01261_ Switching to secondary target: Y-45 Defender. Map ----- +----------------------------------------------------+ | ????????????????????????????????????????# ? ?? ### | | ?????????????????????????????????????#??? ?? ? #?# | | ????????????????????????????????????????# # ? ?#?# | | ???????????????????????????????? ?????? +?? ##? | | ?????????????????????????????????????#??# # ??## | | ??????????????????????????????? ????????# # ?? ??? | | ?????????????????????????????? ???????#?# #? ??## | | ?????????????????????????????? ????#????# #?? ???# | | ????????????????????????????????#?#????## #??##??# | | ?????????????????????????????? ?????????# #??????# | | ?????????????????????????????????#?#????# #?#?#?#? | | ?????????????????????????????? ????#?#?# ######## | | ????????????????????????????? ? #??#?#?## | | ?????????????????????????????? ?#######?# | | ????????????????????????????#???# ## | | ??????????????????????? ????????#= ## | | ??????????????????????? ???## ?# """ ## | | ????????????????????????#???# # """ ## | | ????????????????????????#???# # """ ## | | ????????????????????? ??????# # ? ??# | | ???????????????? ??#??##???## #+####### | | ????????????????????######## | | ????????????#?? ??#?# ## ######## | | ???????????????????"## ![[## ###??#?# | | ??????????????? ???"?# ![[## ####### #????#?# | | ?????????????????????# !=@## #?????# #?#???## | | ????????????????? ??## %g## ####?## #??? # | | ????????????????????## Yg + ####??# #?? ? ? | | ?????????? ?? ? ?????# g%## #######+###??? ???? | | ?????????????? ?????## % ## ## # ???? | | ????????????#? ??###?# %!## ## """"" #??? ???? | | ?????????????# #######+## # """"" #????#??? | | ??????????"S / =* # """"" #? ? ?? ? | | ?????????????# T + # ?? ???? | | ?????????? ?# # """"" # ???? | | ???????????? ######+####### # """"" ##?#?#??? | | ????????????????? T ? ?######### """"" + ? | | ????????????????# ??????#??#????# #####???? | | ????????????????#? ??? ###???##?########+#?#?? ??? | | ????????????? ???????????#???????##??#?#??#?? ? ?+ | | ??????????????????? ? ????#?#??#???##????????????? | | ????????????????????????##?? ???##?#?##??#??#??? ? | | ??????????????????#????#????????#???#?## ?#????? ? | | ????????????????????#????? ? ?#???????? ??????? ? | | ???????????????????????#????????????#?? ?????????? | | ??????????????????????????? ? ??? ? ?? ???????? ?? | | ??????????????????????????? ??? ????????? ???????? | | ?????????????????????????????????????? ??????????? | | ???????????????????????????? ? ???#???? ???#?????? | | ???????????????????????????????????????#?????????? | +----------------------------------------------------+ Best States ------------- Heat Dissipation 28 Coolant Potential 50 Energy Generation 10 Energy Capacity 250 Matter Stores 300 Matter Capacity 300 Sight Range 16 Terrain Scan Range 16 Terrain Scan Density 60 Evasion (%) 50 Item Schematics ----------------- None Robot Schematics ------------------ None Fabricated ------------ Nothing Alien Tech Used ----------------- None Achievements -------------- None Challenges ------------ None Game ------ Seed SurveybotAssaultMaul Manual? 0 Play Time 00:16:36 Cumulative 63.4 hours Start 2020.11.29 @ 19:46:00 End 2020.11.29 @ 19:59:56 Sessions 1 Manual Loads 0 Difficulty Rogue Special Mode None Game No. 61 Rogue 61 Adventurer 0 Explorer 0 Win Type - Total 0 Types 0/0/0/0/0/0/0/0/0 Lore% 25 Gallery% 40 Achievement% 26 Wizard Run 0 Options --------- ASCII 0 Keyboard 0 Movement Arrows Keybinds 0 Fullscreen 1 Font 14/Terminus Map View 72x54 Tactical HUD 1 Map Filters NONE Filters NONE Steam 1 RUN: c87eda45-486a-475b-a2a4-13ec08e907a0